{"text_format":"1","workbook":"xlsx","n_sheets":8,"sheets":["Αρχή","Support","ws_Store","ws_Food","ws_Med","ws_House","ws_Other","ws_Index"],"not_rendered":{"charts":0,"images":4,"macros":1,"external_links":0,"defined_names":0,"comments":0,"pivot_tables":0},"unopened":[],"bounds":{"document_bytes":16777216,"sheet_cells":100000,"rows_first":2000,"rows_last":500,"rows_between":2000,"halvings":0,"cell_chars":16384,"cell_head_chars":4096},"cells_cut":0,"cells_raw":0,"read":"whole","date_system":"1900"}

{"sheet":"Αρχή","index":0,"n_rows":11,"n_cols":2,"rows_kept":11,"cut":false,"hidden":false,"merged":[[11,1,11,6],[1,1,1,7],[3,1,3,7],[4,1,4,7],[7,1,7,7],[8,1,8,7],[10,1,10,7]]}
[]
[null,"Διαμόρφωση αρχείου Excel"]
[]
[null,"Πριν ξεκινήσετε την συμπλήρωση του παρόντος αρχείου, παρακαλούμε καταχωρήστε τα στοιχεία που ζητούνται παρακάτω και κάντε κλικ στο πλήκτρο 'Αρχικοποίηση'."]
[null,"Η λειτουργία αυτή εκτελείται μόνο μία φορά και θα προσθέσει στο παρόν αρχείο, τόσα φύλλα όσα χρειάζονται για την καταγραφή των ωφελουμένων, σύμφωνα με τις επιλογές σας."]
[]
[]
[null,"Πληκτρολογήστε τον τίτλο του φορέα σας:"]
[]
[]
[null,"Επιλέξτε τον αριθμό των δομών που λειτουργούν:"]

{"sheet":"Support","index":1,"n_rows":13,"n_cols":3,"rows_kept":13,"cut":false,"hidden":true,"merged":[]}
[]
[]
[]
["Είδη δομών",null,"Φύλο"]
["Κοινωνικό Παντοπωλείο",null,"Άνδρας"]
["Κοινωνικό Φαρμακείο",null,"Γυναίκα"]
["Κοινωνικό Συσσίτιο"]
["Υπνωτήρια"]
["Ανοιχτά Κέντρα Ημέρας"]
["Κέντρο Κοινότητας"]
["Στέγη Υποστ. Διαβίωσης"]
["ΚΔΗΦ"]
["ΚΗΦΗ"]

{"sheet":"ws_Store","index":2,"n_rows":19,"n_cols":9,"rows_kept":19,"cut":false,"hidden":true,"merged":[]}
["α/α\n(1)","ΑΜΚΑ\n(2)","ΚΩΔΙΚΟΣ ΣΤΟ ΣΥΣΤΗΜΑ ΤΟΥ ΔΙΚΑΙΟΥΧΟΥ\n(3)","ΦΥΛΟ\n(4)","ΕΤΟΣ ΠΡΩΤΗΣ ΛΗΨΗΣ ΥΠΗΡΕΣΙΑΣ\n(5)","ΑΡΙΘΜ. ΠΡΟΣΤΑΤΕΥΟΜ. ΜΕΛΩΝ\n(6) = (7) + (8)","ΑΡΙΘΜ. ΑΝΔΡΩΝ ΠΡΟΣΤΑΤΕΥΟΜ. ΜΕΛΩΝ\n(7)","ΑΡΙΘΜ. ΓΥΝΑΙΚΩΝ ΠΡΟΣΤΑΤΕΥΟΜ. ΜΕΛΩΝ\n(8)","Ο ΑΜΚΑ ΕΠΑΝΑΛΑΜΒΑΝΕΤΑΙ ΣΤΟ ΤΡΕΧΟΝ ΦΥΛΛΟ ΤΗΣ ΔΟΜΗΣ;\n(9)"]
[1,null,null,null,null,{"$f":"Πίνακας3[[#This Row],[ΑΡΙΘΜ. ΑΝΔΡΩΝ ΠΡΟΣΤΑΤΕΥΟΜ. ΜΕΛΩΝ\n(7)]]+Πίνακας3[[#This Row],[ΑΡΙΘΜ. ΓΥΝΑΙΚΩΝ ΠΡΟΣΤΑΤΕΥΟΜ. ΜΕΛΩΝ\n(8)]]","v":0},null,null,{"$f":"IF(COUNTIF(Πίνακας3[ΑΜΚΑ\n(2)],B2)<2,\"ΟΧΙ\",\"ΝΑΙ\")","v":"ΟΧΙ"}]
[{"$f":"A2+1","v":2},null,null,null,null,{"$f":"Πίνακας3[[#This Row],[ΑΡΙΘΜ. ΑΝΔΡΩΝ ΠΡΟΣΤΑΤΕΥΟΜ. ΜΕΛΩΝ\n(7)]]+Πίνακας3[[#This Row],[ΑΡΙΘΜ. ΓΥΝΑΙΚΩΝ ΠΡΟΣΤΑΤΕΥΟΜ. ΜΕΛΩΝ\n(8)]]","v":0},null,null,{"$f":"IF(COUNTIF(Πίνακας3[ΑΜΚΑ\n(2)],B3)<2,\"ΟΧΙ\",\"ΝΑΙ\")","v":"ΟΧΙ"}]
[3,null,null,null,null,{"$f":"Πίνακας3[[#This Row],[ΑΡΙΘΜ. ΑΝΔΡΩΝ ΠΡΟΣΤΑΤΕΥΟΜ. ΜΕΛΩΝ\n(7)]]+Πίνακας3[[#This Row],[ΑΡΙΘΜ. ΓΥΝΑΙΚΩΝ ΠΡΟΣΤΑΤΕΥΟΜ. ΜΕΛΩΝ\n(8)]]","v":0},null,null,{"$f":"IF(COUNTIF(Πίνακας3[ΑΜΚΑ\n(2)],B4)<2,\"ΟΧΙ\",\"ΝΑΙ\")","v":"ΟΧΙ"}]
[4,null,null,null,null,{"$f":"Πίνακας3[[#This Row],[ΑΡΙΘΜ. ΑΝΔΡΩΝ ΠΡΟΣΤΑΤΕΥΟΜ. ΜΕΛΩΝ\n(7)]]+Πίνακας3[[#This Row],[ΑΡΙΘΜ. ΓΥΝΑΙΚΩΝ ΠΡΟΣΤΑΤΕΥΟΜ. ΜΕΛΩΝ\n(8)]]","v":0},null,null,{"$f":"IF(COUNTIF(Πίνακας3[ΑΜΚΑ\n(2)],B5)<2,\"ΟΧΙ\",\"ΝΑΙ\")","v":"ΟΧΙ"}]
[5,null,null,null,null,{"$f":"Πίνακας3[[#This Row],[ΑΡΙΘΜ. ΑΝΔΡΩΝ ΠΡΟΣΤΑΤΕΥΟΜ. ΜΕΛΩΝ\n(7)]]+Πίνακας3[[#This Row],[ΑΡΙΘΜ. ΓΥΝΑΙΚΩΝ ΠΡΟΣΤΑΤΕΥΟΜ. ΜΕΛΩΝ\n(8)]]","v":0},null,null,{"$f":"IF(COUNTIF(Πίνακας3[ΑΜΚΑ\n(2)],B6)<2,\"ΟΧΙ\",\"ΝΑΙ\")","v":"ΟΧΙ"}]
[6,null,null,null,null,{"$f":"Πίνακας3[[#This Row],[ΑΡΙΘΜ. ΑΝΔΡΩΝ ΠΡΟΣΤΑΤΕΥΟΜ. ΜΕΛΩΝ\n(7)]]+Πίνακας3[[#This Row],[ΑΡΙΘΜ. ΓΥΝΑΙΚΩΝ ΠΡΟΣΤΑΤΕΥΟΜ. ΜΕΛΩΝ\n(8)]]","v":0},null,null,{"$f":"IF(COUNTIF(Πίνακας3[ΑΜΚΑ\n(2)],B7)<2,\"ΟΧΙ\",\"ΝΑΙ\")","v":"ΟΧΙ"}]
[7,null,null,null,null,{"$f":"Πίνακας3[[#This Row],[ΑΡΙΘΜ. ΑΝΔΡΩΝ ΠΡΟΣΤΑΤΕΥΟΜ. ΜΕΛΩΝ\n(7)]]+Πίνακας3[[#This Row],[ΑΡΙΘΜ. ΓΥΝΑΙΚΩΝ ΠΡΟΣΤΑΤΕΥΟΜ. ΜΕΛΩΝ\n(8)]]","v":0},null,null,{"$f":"IF(COUNTIF(Πίνακας3[ΑΜΚΑ\n(2)],B8)<2,\"ΟΧΙ\",\"ΝΑΙ\")","v":"ΟΧΙ"}]
[8,null,null,null,null,{"$f":"Πίνακας3[[#This Row],[ΑΡΙΘΜ. ΑΝΔΡΩΝ ΠΡΟΣΤΑΤΕΥΟΜ. ΜΕΛΩΝ\n(7)]]+Πίνακας3[[#This Row],[ΑΡΙΘΜ. ΓΥΝΑΙΚΩΝ ΠΡΟΣΤΑΤΕΥΟΜ. ΜΕΛΩΝ\n(8)]]","v":0},null,null,{"$f":"IF(COUNTIF(Πίνακας3[ΑΜΚΑ\n(2)],B9)<2,\"ΟΧΙ\",\"ΝΑΙ\")","v":"ΟΧΙ"}]
[9,null,null,null,null,{"$f":"Πίνακας3[[#This Row],[ΑΡΙΘΜ. ΑΝΔΡΩΝ ΠΡΟΣΤΑΤΕΥΟΜ. ΜΕΛΩΝ\n(7)]]+Πίνακας3[[#This Row],[ΑΡΙΘΜ. ΓΥΝΑΙΚΩΝ ΠΡΟΣΤΑΤΕΥΟΜ. ΜΕΛΩΝ\n(8)]]","v":0},null,null,{"$f":"IF(COUNTIF(Πίνακας3[ΑΜΚΑ\n(2)],B10)<2,\"ΟΧΙ\",\"ΝΑΙ\")","v":"ΟΧΙ"}]
[10,null,null,null,null,{"$f":"Πίνακας3[[#This Row],[ΑΡΙΘΜ. ΑΝΔΡΩΝ ΠΡΟΣΤΑΤΕΥΟΜ. ΜΕΛΩΝ\n(7)]]+Πίνακας3[[#This Row],[ΑΡΙΘΜ. ΓΥΝΑΙΚΩΝ ΠΡΟΣΤΑΤΕΥΟΜ. ΜΕΛΩΝ\n(8)]]","v":0},null,null,{"$f":"IF(COUNTIF(Πίνακας3[ΑΜΚΑ\n(2)],B11)<2,\"ΟΧΙ\",\"ΝΑΙ\")","v":"ΟΧΙ"}]
[11,null,null,null,null,{"$f":"Πίνακας3[[#This Row],[ΑΡΙΘΜ. ΑΝΔΡΩΝ ΠΡΟΣΤΑΤΕΥΟΜ. ΜΕΛΩΝ\n(7)]]+Πίνακας3[[#This Row],[ΑΡΙΘΜ. ΓΥΝΑΙΚΩΝ ΠΡΟΣΤΑΤΕΥΟΜ. ΜΕΛΩΝ\n(8)]]","v":0},null,null,{"$f":"IF(COUNTIF(Πίνακας3[ΑΜΚΑ\n(2)],B12)<2,\"ΟΧΙ\",\"ΝΑΙ\")","v":"ΟΧΙ"}]
[12,null,null,null,null,{"$f":"Πίνακας3[[#This Row],[ΑΡΙΘΜ. ΑΝΔΡΩΝ ΠΡΟΣΤΑΤΕΥΟΜ. ΜΕΛΩΝ\n(7)]]+Πίνακας3[[#This Row],[ΑΡΙΘΜ. ΓΥΝΑΙΚΩΝ ΠΡΟΣΤΑΤΕΥΟΜ. ΜΕΛΩΝ\n(8)]]","v":0},null,null,{"$f":"IF(COUNTIF(Πίνακας3[ΑΜΚΑ\n(2)],B13)<2,\"ΟΧΙ\",\"ΝΑΙ\")","v":"ΟΧΙ"}]
[13,null,null,null,null,{"$f":"Πίνακας3[[#This Row],[ΑΡΙΘΜ. ΑΝΔΡΩΝ ΠΡΟΣΤΑΤΕΥΟΜ. ΜΕΛΩΝ\n(7)]]+Πίνακας3[[#This Row],[ΑΡΙΘΜ. ΓΥΝΑΙΚΩΝ ΠΡΟΣΤΑΤΕΥΟΜ. ΜΕΛΩΝ\n(8)]]","v":0},null,null,{"$f":"IF(COUNTIF(Πίνακας3[ΑΜΚΑ\n(2)],B14)<2,\"ΟΧΙ\",\"ΝΑΙ\")","v":"ΟΧΙ"}]
[14,null,null,null,null,{"$f":"Πίνακας3[[#This Row],[ΑΡΙΘΜ. ΑΝΔΡΩΝ ΠΡΟΣΤΑΤΕΥΟΜ. ΜΕΛΩΝ\n(7)]]+Πίνακας3[[#This Row],[ΑΡΙΘΜ. ΓΥΝΑΙΚΩΝ ΠΡΟΣΤΑΤΕΥΟΜ. ΜΕΛΩΝ\n(8)]]","v":0},null,null,{"$f":"IF(COUNTIF(Πίνακας3[ΑΜΚΑ\n(2)],B15)<2,\"ΟΧΙ\",\"ΝΑΙ\")","v":"ΟΧΙ"}]
[15,null,null,null,null,{"$f":"Πίνακας3[[#This Row],[ΑΡΙΘΜ. ΑΝΔΡΩΝ ΠΡΟΣΤΑΤΕΥΟΜ. ΜΕΛΩΝ\n(7)]]+Πίνακας3[[#This Row],[ΑΡΙΘΜ. ΓΥΝΑΙΚΩΝ ΠΡΟΣΤΑΤΕΥΟΜ. ΜΕΛΩΝ\n(8)]]","v":0},null,null,{"$f":"IF(COUNTIF(Πίνακας3[ΑΜΚΑ\n(2)],B16)<2,\"ΟΧΙ\",\"ΝΑΙ\")","v":"ΟΧΙ"}]
[16,null,null,null,null,{"$f":"Πίνακας3[[#This Row],[ΑΡΙΘΜ. ΑΝΔΡΩΝ ΠΡΟΣΤΑΤΕΥΟΜ. ΜΕΛΩΝ\n(7)]]+Πίνακας3[[#This Row],[ΑΡΙΘΜ. ΓΥΝΑΙΚΩΝ ΠΡΟΣΤΑΤΕΥΟΜ. ΜΕΛΩΝ\n(8)]]","v":0},null,null,{"$f":"IF(COUNTIF(Πίνακας3[ΑΜΚΑ\n(2)],B17)<2,\"ΟΧΙ\",\"ΝΑΙ\")","v":"ΟΧΙ"}]
[17,null,null,null,null,{"$f":"Πίνακας3[[#This Row],[ΑΡΙΘΜ. ΑΝΔΡΩΝ ΠΡΟΣΤΑΤΕΥΟΜ. ΜΕΛΩΝ\n(7)]]+Πίνακας3[[#This Row],[ΑΡΙΘΜ. ΓΥΝΑΙΚΩΝ ΠΡΟΣΤΑΤΕΥΟΜ. ΜΕΛΩΝ\n(8)]]","v":0},null,null,{"$f":"IF(COUNTIF(Πίνακας3[ΑΜΚΑ\n(2)],B18)<2,\"ΟΧΙ\",\"ΝΑΙ\")","v":"ΟΧΙ"}]
[18,null,null,null,null,{"$f":"Πίνακας3[[#This Row],[ΑΡΙΘΜ. ΑΝΔΡΩΝ ΠΡΟΣΤΑΤΕΥΟΜ. ΜΕΛΩΝ\n(7)]]+Πίνακας3[[#This Row],[ΑΡΙΘΜ. ΓΥΝΑΙΚΩΝ ΠΡΟΣΤΑΤΕΥΟΜ. ΜΕΛΩΝ\n(8)]]","v":0},null,null,{"$f":"IF(COUNTIF(Πίνακας3[ΑΜΚΑ\n(2)],B19)<2,\"ΟΧΙ\",\"ΝΑΙ\")","v":"ΟΧΙ"}]

{"sheet":"ws_Food","index":3,"n_rows":19,"n_cols":9,"rows_kept":19,"cut":false,"hidden":true,"merged":[]}
["α/α\n(1)","ΑΜΚΑ\n(2)","ΚΩΔΙΚΟΣ ΣΤΟ ΣΥΣΤΗΜΑ ΤΟΥ ΔΙΚΑΙΟΥΧΟΥ\n(3)","ΦΥΛΟ\n(4)","ΕΤΟΣ ΠΡΩΤΗΣ ΛΗΨΗΣ ΥΠΗΡΕΣΙΑΣ\n(5)","ΑΡΙΘΜ. ΠΡΟΣΤΑΤΕΥΟΜ. ΜΕΛΩΝ\n(6) = (7) + (8)","ΑΡΙΘΜ. ΑΝΔΡΩΝ ΠΡΟΣΤΑΤΕΥΟΜ. ΜΕΛΩΝ\n(7)","ΑΡΙΘΜ. ΓΥΝΑΙΚΩΝ ΠΡΟΣΤΑΤΕΥΟΜ. ΜΕΛΩΝ\n(8)","Ο ΑΜΚΑ ΕΠΑΝΑΛΑΜΒΑΝΕΤΑΙ ΣΤΟ ΤΡΕΧΟΝ ΦΥΛΛΟ ΤΗΣ ΔΟΜΗΣ;\n(9)"]
[1,null,null,null,null,{"$f":"Πίνακας35[[#This Row],[ΑΡΙΘΜ. ΑΝΔΡΩΝ ΠΡΟΣΤΑΤΕΥΟΜ. ΜΕΛΩΝ\n(7)]]+Πίνακας35[[#This Row],[ΑΡΙΘΜ. ΓΥΝΑΙΚΩΝ ΠΡΟΣΤΑΤΕΥΟΜ. ΜΕΛΩΝ\n(8)]]","v":0},null,null,{"$f":"IF(COUNTIFS(Πίνακας35[ΑΜΚΑ\n(2)],B2)<2,\"ΟΧΙ\",\"ΝΑΙ\")","v":"ΟΧΙ"}]
[{"$f":"A2+1","v":2},null,null,null,null,{"$f":"Πίνακας35[[#This Row],[ΑΡΙΘΜ. ΑΝΔΡΩΝ ΠΡΟΣΤΑΤΕΥΟΜ. ΜΕΛΩΝ\n(7)]]+Πίνακας35[[#This Row],[ΑΡΙΘΜ. ΓΥΝΑΙΚΩΝ ΠΡΟΣΤΑΤΕΥΟΜ. ΜΕΛΩΝ\n(8)]]","v":0},null,null,{"$f":"IF(COUNTIFS(Πίνακας35[ΑΜΚΑ\n(2)],B3)<2,\"ΟΧΙ\",\"ΝΑΙ\")","v":"ΟΧΙ"}]
[3,null,null,null,null,{"$f":"Πίνακας35[[#This Row],[ΑΡΙΘΜ. ΑΝΔΡΩΝ ΠΡΟΣΤΑΤΕΥΟΜ. ΜΕΛΩΝ\n(7)]]+Πίνακας35[[#This Row],[ΑΡΙΘΜ. ΓΥΝΑΙΚΩΝ ΠΡΟΣΤΑΤΕΥΟΜ. ΜΕΛΩΝ\n(8)]]","v":0},null,null,{"$f":"IF(COUNTIFS(Πίνακας35[ΑΜΚΑ\n(2)],B4)<2,\"ΟΧΙ\",\"ΝΑΙ\")","v":"ΟΧΙ"}]
[4,null,null,null,null,{"$f":"Πίνακας35[[#This Row],[ΑΡΙΘΜ. ΑΝΔΡΩΝ ΠΡΟΣΤΑΤΕΥΟΜ. ΜΕΛΩΝ\n(7)]]+Πίνακας35[[#This Row],[ΑΡΙΘΜ. ΓΥΝΑΙΚΩΝ ΠΡΟΣΤΑΤΕΥΟΜ. ΜΕΛΩΝ\n(8)]]","v":0},null,null,{"$f":"IF(COUNTIFS(Πίνακας35[ΑΜΚΑ\n(2)],B5)<2,\"ΟΧΙ\",\"ΝΑΙ\")","v":"ΟΧΙ"}]
[5,null,null,null,null,{"$f":"Πίνακας35[[#This Row],[ΑΡΙΘΜ. ΑΝΔΡΩΝ ΠΡΟΣΤΑΤΕΥΟΜ. ΜΕΛΩΝ\n(7)]]+Πίνακας35[[#This Row],[ΑΡΙΘΜ. ΓΥΝΑΙΚΩΝ ΠΡΟΣΤΑΤΕΥΟΜ. ΜΕΛΩΝ\n(8)]]","v":0},null,null,{"$f":"IF(COUNTIFS(Πίνακας35[ΑΜΚΑ\n(2)],B6)<2,\"ΟΧΙ\",\"ΝΑΙ\")","v":"ΟΧΙ"}]
[6,null,null,null,null,{"$f":"Πίνακας35[[#This Row],[ΑΡΙΘΜ. ΑΝΔΡΩΝ ΠΡΟΣΤΑΤΕΥΟΜ. ΜΕΛΩΝ\n(7)]]+Πίνακας35[[#This Row],[ΑΡΙΘΜ. ΓΥΝΑΙΚΩΝ ΠΡΟΣΤΑΤΕΥΟΜ. ΜΕΛΩΝ\n(8)]]","v":0},null,null,{"$f":"IF(COUNTIFS(Πίνακας35[ΑΜΚΑ\n(2)],B7)<2,\"ΟΧΙ\",\"ΝΑΙ\")","v":"ΟΧΙ"}]
[7,null,null,null,null,{"$f":"Πίνακας35[[#This Row],[ΑΡΙΘΜ. ΑΝΔΡΩΝ ΠΡΟΣΤΑΤΕΥΟΜ. ΜΕΛΩΝ\n(7)]]+Πίνακας35[[#This Row],[ΑΡΙΘΜ. ΓΥΝΑΙΚΩΝ ΠΡΟΣΤΑΤΕΥΟΜ. ΜΕΛΩΝ\n(8)]]","v":0},null,null,{"$f":"IF(COUNTIFS(Πίνακας35[ΑΜΚΑ\n(2)],B8)<2,\"ΟΧΙ\",\"ΝΑΙ\")","v":"ΟΧΙ"}]
[8,null,null,null,null,{"$f":"Πίνακας35[[#This Row],[ΑΡΙΘΜ. ΑΝΔΡΩΝ ΠΡΟΣΤΑΤΕΥΟΜ. ΜΕΛΩΝ\n(7)]]+Πίνακας35[[#This Row],[ΑΡΙΘΜ. ΓΥΝΑΙΚΩΝ ΠΡΟΣΤΑΤΕΥΟΜ. ΜΕΛΩΝ\n(8)]]","v":0},null,null,{"$f":"IF(COUNTIFS(Πίνακας35[ΑΜΚΑ\n(2)],B9)<2,\"ΟΧΙ\",\"ΝΑΙ\")","v":"ΟΧΙ"}]
[9,null,null,null,null,{"$f":"Πίνακας35[[#This Row],[ΑΡΙΘΜ. ΑΝΔΡΩΝ ΠΡΟΣΤΑΤΕΥΟΜ. ΜΕΛΩΝ\n(7)]]+Πίνακας35[[#This Row],[ΑΡΙΘΜ. ΓΥΝΑΙΚΩΝ ΠΡΟΣΤΑΤΕΥΟΜ. ΜΕΛΩΝ\n(8)]]","v":0},null,null,{"$f":"IF(COUNTIFS(Πίνακας35[ΑΜΚΑ\n(2)],B10)<2,\"ΟΧΙ\",\"ΝΑΙ\")","v":"ΟΧΙ"}]
[10,null,null,null,null,{"$f":"Πίνακας35[[#This Row],[ΑΡΙΘΜ. ΑΝΔΡΩΝ ΠΡΟΣΤΑΤΕΥΟΜ. ΜΕΛΩΝ\n(7)]]+Πίνακας35[[#This Row],[ΑΡΙΘΜ. ΓΥΝΑΙΚΩΝ ΠΡΟΣΤΑΤΕΥΟΜ. ΜΕΛΩΝ\n(8)]]","v":0},null,null,{"$f":"IF(COUNTIFS(Πίνακας35[ΑΜΚΑ\n(2)],B11)<2,\"ΟΧΙ\",\"ΝΑΙ\")","v":"ΟΧΙ"}]
[11,null,null,null,null,{"$f":"Πίνακας35[[#This Row],[ΑΡΙΘΜ. ΑΝΔΡΩΝ ΠΡΟΣΤΑΤΕΥΟΜ. ΜΕΛΩΝ\n(7)]]+Πίνακας35[[#This Row],[ΑΡΙΘΜ. ΓΥΝΑΙΚΩΝ ΠΡΟΣΤΑΤΕΥΟΜ. ΜΕΛΩΝ\n(8)]]","v":0},null,null,{"$f":"IF(COUNTIFS(Πίνακας35[ΑΜΚΑ\n(2)],B12)<2,\"ΟΧΙ\",\"ΝΑΙ\")","v":"ΟΧΙ"}]
[12,null,null,null,null,{"$f":"Πίνακας35[[#This Row],[ΑΡΙΘΜ. ΑΝΔΡΩΝ ΠΡΟΣΤΑΤΕΥΟΜ. ΜΕΛΩΝ\n(7)]]+Πίνακας35[[#This Row],[ΑΡΙΘΜ. ΓΥΝΑΙΚΩΝ ΠΡΟΣΤΑΤΕΥΟΜ. ΜΕΛΩΝ\n(8)]]","v":0},null,null,{"$f":"IF(COUNTIFS(Πίνακας35[ΑΜΚΑ\n(2)],B13)<2,\"ΟΧΙ\",\"ΝΑΙ\")","v":"ΟΧΙ"}]
[13,null,null,null,null,{"$f":"Πίνακας35[[#This Row],[ΑΡΙΘΜ. ΑΝΔΡΩΝ ΠΡΟΣΤΑΤΕΥΟΜ. ΜΕΛΩΝ\n(7)]]+Πίνακας35[[#This Row],[ΑΡΙΘΜ. ΓΥΝΑΙΚΩΝ ΠΡΟΣΤΑΤΕΥΟΜ. ΜΕΛΩΝ\n(8)]]","v":0},null,null,{"$f":"IF(COUNTIFS(Πίνακας35[ΑΜΚΑ\n(2)],B14)<2,\"ΟΧΙ\",\"ΝΑΙ\")","v":"ΟΧΙ"}]
[14,null,null,null,null,{"$f":"Πίνακας35[[#This Row],[ΑΡΙΘΜ. ΑΝΔΡΩΝ ΠΡΟΣΤΑΤΕΥΟΜ. ΜΕΛΩΝ\n(7)]]+Πίνακας35[[#This Row],[ΑΡΙΘΜ. ΓΥΝΑΙΚΩΝ ΠΡΟΣΤΑΤΕΥΟΜ. ΜΕΛΩΝ\n(8)]]","v":0},null,null,{"$f":"IF(COUNTIFS(Πίνακας35[ΑΜΚΑ\n(2)],B15)<2,\"ΟΧΙ\",\"ΝΑΙ\")","v":"ΟΧΙ"}]
[15,null,null,null,null,{"$f":"Πίνακας35[[#This Row],[ΑΡΙΘΜ. ΑΝΔΡΩΝ ΠΡΟΣΤΑΤΕΥΟΜ. ΜΕΛΩΝ\n(7)]]+Πίνακας35[[#This Row],[ΑΡΙΘΜ. ΓΥΝΑΙΚΩΝ ΠΡΟΣΤΑΤΕΥΟΜ. ΜΕΛΩΝ\n(8)]]","v":0},null,null,{"$f":"IF(COUNTIFS(Πίνακας35[ΑΜΚΑ\n(2)],B16)<2,\"ΟΧΙ\",\"ΝΑΙ\")","v":"ΟΧΙ"}]
[16,null,null,null,null,{"$f":"Πίνακας35[[#This Row],[ΑΡΙΘΜ. ΑΝΔΡΩΝ ΠΡΟΣΤΑΤΕΥΟΜ. ΜΕΛΩΝ\n(7)]]+Πίνακας35[[#This Row],[ΑΡΙΘΜ. ΓΥΝΑΙΚΩΝ ΠΡΟΣΤΑΤΕΥΟΜ. ΜΕΛΩΝ\n(8)]]","v":0},null,null,{"$f":"IF(COUNTIFS(Πίνακας35[ΑΜΚΑ\n(2)],B17)<2,\"ΟΧΙ\",\"ΝΑΙ\")","v":"ΟΧΙ"}]
[17,null,null,null,null,{"$f":"Πίνακας35[[#This Row],[ΑΡΙΘΜ. ΑΝΔΡΩΝ ΠΡΟΣΤΑΤΕΥΟΜ. ΜΕΛΩΝ\n(7)]]+Πίνακας35[[#This Row],[ΑΡΙΘΜ. ΓΥΝΑΙΚΩΝ ΠΡΟΣΤΑΤΕΥΟΜ. ΜΕΛΩΝ\n(8)]]","v":0},null,null,{"$f":"IF(COUNTIFS(Πίνακας35[ΑΜΚΑ\n(2)],B18)<2,\"ΟΧΙ\",\"ΝΑΙ\")","v":"ΟΧΙ"}]
[18,null,null,null,null,{"$f":"Πίνακας35[[#This Row],[ΑΡΙΘΜ. ΑΝΔΡΩΝ ΠΡΟΣΤΑΤΕΥΟΜ. ΜΕΛΩΝ\n(7)]]+Πίνακας35[[#This Row],[ΑΡΙΘΜ. ΓΥΝΑΙΚΩΝ ΠΡΟΣΤΑΤΕΥΟΜ. ΜΕΛΩΝ\n(8)]]","v":0},null,null,{"$f":"IF(COUNTIFS(Πίνακας35[ΑΜΚΑ\n(2)],B19)<2,\"ΟΧΙ\",\"ΝΑΙ\")","v":"ΟΧΙ"}]

{"sheet":"ws_Med","index":4,"n_rows":19,"n_cols":6,"rows_kept":19,"cut":false,"hidden":true,"merged":[]}
["α/α\n(1)","ΑΜΚΑ\n(2)","ΚΩΔΙΚΟΣ ΣΤΟ ΣΥΣΤΗΜΑ ΤΟΥ ΔΙΚΑΙΟΥΧΟΥ\n(3)","ΦΥΛΟ\n(4)","ΕΤΟΣ ΠΡΩΤΗΣ ΛΗΨΗΣ ΥΠΗΡΕΣΙΑΣ\n(5)","Ο ΑΜΚΑ ΕΠΑΝΑΛΑΜΒΑΝΕΤΑΙ ΣΤΟ ΤΡΕΧΟΝ ΦΥΛΛΟ ΤΗΣ ΔΟΜΗΣ;\n(6)"]
[1,null,null,null,null,{"$f":"IF(COUNTIFS(Πίνακας356[ΑΜΚΑ\n(2)],B2)<2,\"ΟΧΙ\",\"ΝΑΙ\")","v":"ΟΧΙ"}]
[{"$f":"A2+1","v":2},null,null,null,null,{"$f":"IF(COUNTIFS(Πίνακας356[ΑΜΚΑ\n(2)],B3)<2,\"ΟΧΙ\",\"ΝΑΙ\")","v":"ΟΧΙ"}]
[3,null,null,null,null,{"$f":"IF(COUNTIFS(Πίνακας356[ΑΜΚΑ\n(2)],B4)<2,\"ΟΧΙ\",\"ΝΑΙ\")","v":"ΟΧΙ"}]
[4,null,null,null,null,{"$f":"IF(COUNTIFS(Πίνακας356[ΑΜΚΑ\n(2)],B5)<2,\"ΟΧΙ\",\"ΝΑΙ\")","v":"ΟΧΙ"}]
[5,null,null,null,null,{"$f":"IF(COUNTIFS(Πίνακας356[ΑΜΚΑ\n(2)],B6)<2,\"ΟΧΙ\",\"ΝΑΙ\")","v":"ΟΧΙ"}]
[6,null,null,null,null,{"$f":"IF(COUNTIFS(Πίνακας356[ΑΜΚΑ\n(2)],B7)<2,\"ΟΧΙ\",\"ΝΑΙ\")","v":"ΟΧΙ"}]
[7,null,null,null,null,{"$f":"IF(COUNTIFS(Πίνακας356[ΑΜΚΑ\n(2)],B8)<2,\"ΟΧΙ\",\"ΝΑΙ\")","v":"ΟΧΙ"}]
[8,null,null,null,null,{"$f":"IF(COUNTIFS(Πίνακας356[ΑΜΚΑ\n(2)],B9)<2,\"ΟΧΙ\",\"ΝΑΙ\")","v":"ΟΧΙ"}]
[9,null,null,null,null,{"$f":"IF(COUNTIFS(Πίνακας356[ΑΜΚΑ\n(2)],B10)<2,\"ΟΧΙ\",\"ΝΑΙ\")","v":"ΟΧΙ"}]
[10,null,null,null,null,{"$f":"IF(COUNTIFS(Πίνακας356[ΑΜΚΑ\n(2)],B11)<2,\"ΟΧΙ\",\"ΝΑΙ\")","v":"ΟΧΙ"}]
[11,null,null,null,null,{"$f":"IF(COUNTIFS(Πίνακας356[ΑΜΚΑ\n(2)],B12)<2,\"ΟΧΙ\",\"ΝΑΙ\")","v":"ΟΧΙ"}]
[12,null,null,null,null,{"$f":"IF(COUNTIFS(Πίνακας356[ΑΜΚΑ\n(2)],B13)<2,\"ΟΧΙ\",\"ΝΑΙ\")","v":"ΟΧΙ"}]
[13,null,null,null,null,{"$f":"IF(COUNTIFS(Πίνακας356[ΑΜΚΑ\n(2)],B14)<2,\"ΟΧΙ\",\"ΝΑΙ\")","v":"ΟΧΙ"}]
[14,null,null,null,null,{"$f":"IF(COUNTIFS(Πίνακας356[ΑΜΚΑ\n(2)],B15)<2,\"ΟΧΙ\",\"ΝΑΙ\")","v":"ΟΧΙ"}]
[15,null,null,null,null,{"$f":"IF(COUNTIFS(Πίνακας356[ΑΜΚΑ\n(2)],B16)<2,\"ΟΧΙ\",\"ΝΑΙ\")","v":"ΟΧΙ"}]
[16,null,null,null,null,{"$f":"IF(COUNTIFS(Πίνακας356[ΑΜΚΑ\n(2)],B17)<2,\"ΟΧΙ\",\"ΝΑΙ\")","v":"ΟΧΙ"}]
[17,null,null,null,null,{"$f":"IF(COUNTIFS(Πίνακας356[ΑΜΚΑ\n(2)],B18)<2,\"ΟΧΙ\",\"ΝΑΙ\")","v":"ΟΧΙ"}]
[18,null,null,null,null,{"$f":"IF(COUNTIFS(Πίνακας356[ΑΜΚΑ\n(2)],B19)<2,\"ΟΧΙ\",\"ΝΑΙ\")","v":"ΟΧΙ"}]

{"sheet":"ws_House","index":5,"n_rows":19,"n_cols":6,"rows_kept":19,"cut":false,"hidden":true,"merged":[]}
["α/α\n(1)","ΑΜΚΑ\n(2)","ΚΩΔΙΚΟΣ ΣΤΟ ΣΥΣΤΗΜΑ ΤΟΥ ΔΙΚΑΙΟΥΧΟΥ\n(3)","ΦΥΛΟ\n(4)","ΕΤΟΣ ΠΡΩΤΗΣ ΛΗΨΗΣ ΥΠΗΡΕΣΙΑΣ\n(5)","Ο ΑΜΚΑ ΕΠΑΝΑΛΑΜΒΑΝΕΤΑΙ ΣΤΟ ΤΡΕΧΟΝ ΦΥΛΛΟ ΤΗΣ ΔΟΜΗΣ;\n(6)"]
[1,null,null,null,null,{"$f":"IF(COUNTIFS(Πίνακας3567[ΑΜΚΑ\n(2)],B2)<2,\"ΟΧΙ\",\"ΝΑΙ\")","v":"ΟΧΙ"}]
[{"$f":"A2+1","v":2},null,null,null,null,{"$f":"IF(COUNTIFS(Πίνακας3567[ΑΜΚΑ\n(2)],B3)<2,\"ΟΧΙ\",\"ΝΑΙ\")","v":"ΟΧΙ"}]
[3,null,null,null,null,{"$f":"IF(COUNTIFS(Πίνακας3567[ΑΜΚΑ\n(2)],B4)<2,\"ΟΧΙ\",\"ΝΑΙ\")","v":"ΟΧΙ"}]
[4,null,null,null,null,{"$f":"IF(COUNTIFS(Πίνακας3567[ΑΜΚΑ\n(2)],B5)<2,\"ΟΧΙ\",\"ΝΑΙ\")","v":"ΟΧΙ"}]
[5,null,null,null,null,{"$f":"IF(COUNTIFS(Πίνακας3567[ΑΜΚΑ\n(2)],B6)<2,\"ΟΧΙ\",\"ΝΑΙ\")","v":"ΟΧΙ"}]
[6,null,null,null,null,{"$f":"IF(COUNTIFS(Πίνακας3567[ΑΜΚΑ\n(2)],B7)<2,\"ΟΧΙ\",\"ΝΑΙ\")","v":"ΟΧΙ"}]
[7,null,null,null,null,{"$f":"IF(COUNTIFS(Πίνακας3567[ΑΜΚΑ\n(2)],B8)<2,\"ΟΧΙ\",\"ΝΑΙ\")","v":"ΟΧΙ"}]
[8,null,null,null,null,{"$f":"IF(COUNTIFS(Πίνακας3567[ΑΜΚΑ\n(2)],B9)<2,\"ΟΧΙ\",\"ΝΑΙ\")","v":"ΟΧΙ"}]
[9,null,null,null,null,{"$f":"IF(COUNTIFS(Πίνακας3567[ΑΜΚΑ\n(2)],B10)<2,\"ΟΧΙ\",\"ΝΑΙ\")","v":"ΟΧΙ"}]
[10,null,null,null,null,{"$f":"IF(COUNTIFS(Πίνακας3567[ΑΜΚΑ\n(2)],B11)<2,\"ΟΧΙ\",\"ΝΑΙ\")","v":"ΟΧΙ"}]
[11,null,null,null,null,{"$f":"IF(COUNTIFS(Πίνακας3567[ΑΜΚΑ\n(2)],B12)<2,\"ΟΧΙ\",\"ΝΑΙ\")","v":"ΟΧΙ"}]
[12,null,null,null,null,{"$f":"IF(COUNTIFS(Πίνακας3567[ΑΜΚΑ\n(2)],B13)<2,\"ΟΧΙ\",\"ΝΑΙ\")","v":"ΟΧΙ"}]
[13,null,null,null,null,{"$f":"IF(COUNTIFS(Πίνακας3567[ΑΜΚΑ\n(2)],B14)<2,\"ΟΧΙ\",\"ΝΑΙ\")","v":"ΟΧΙ"}]
[14,null,null,null,null,{"$f":"IF(COUNTIFS(Πίνακας3567[ΑΜΚΑ\n(2)],B15)<2,\"ΟΧΙ\",\"ΝΑΙ\")","v":"ΟΧΙ"}]
[15,null,null,null,null,{"$f":"IF(COUNTIFS(Πίνακας3567[ΑΜΚΑ\n(2)],B16)<2,\"ΟΧΙ\",\"ΝΑΙ\")","v":"ΟΧΙ"}]
[16,null,null,null,null,{"$f":"IF(COUNTIFS(Πίνακας3567[ΑΜΚΑ\n(2)],B17)<2,\"ΟΧΙ\",\"ΝΑΙ\")","v":"ΟΧΙ"}]
[17,null,null,null,null,{"$f":"IF(COUNTIFS(Πίνακας3567[ΑΜΚΑ\n(2)],B18)<2,\"ΟΧΙ\",\"ΝΑΙ\")","v":"ΟΧΙ"}]
[18,null,null,null,null,{"$f":"IF(COUNTIFS(Πίνακας3567[ΑΜΚΑ\n(2)],B19)<2,\"ΟΧΙ\",\"ΝΑΙ\")","v":"ΟΧΙ"}]

{"sheet":"ws_Other","index":6,"n_rows":19,"n_cols":6,"rows_kept":19,"cut":false,"hidden":true,"merged":[]}
["α/α\n(1)","ΑΜΚΑ\n(2)","ΚΩΔΙΚΟΣ ΣΤΟ ΣΥΣΤΗΜΑ ΤΟΥ ΔΙΚΑΙΟΥΧΟΥ\n(3)","ΦΥΛΟ\n(4)","ΕΤΟΣ ΠΡΩΤΗΣ ΛΗΨΗΣ ΥΠΗΡΕΣΙΑΣ\n(5)","Ο ΑΜΚΑ ΕΠΑΝΑΛΑΜΒΑΝΕΤΑΙ ΣΤΟ ΤΡΕΧΟΝ ΦΥΛΛΟ ΤΗΣ ΔΟΜΗΣ;\n(6)"]
[1,null,null,null,null,{"$f":"IF(COUNTIFS(Πίνακας35678[ΑΜΚΑ\n(2)],B2)<2,\"ΟΧΙ\",\"ΝΑΙ\")","v":"ΟΧΙ"}]
[{"$f":"A2+1","v":2},null,null,null,null,{"$f":"IF(COUNTIFS(Πίνακας35678[ΑΜΚΑ\n(2)],B3)<2,\"ΟΧΙ\",\"ΝΑΙ\")","v":"ΟΧΙ"}]
[3,null,null,null,null,{"$f":"IF(COUNTIFS(Πίνακας35678[ΑΜΚΑ\n(2)],B4)<2,\"ΟΧΙ\",\"ΝΑΙ\")","v":"ΟΧΙ"}]
[4,null,null,null,null,{"$f":"IF(COUNTIFS(Πίνακας35678[ΑΜΚΑ\n(2)],B5)<2,\"ΟΧΙ\",\"ΝΑΙ\")","v":"ΟΧΙ"}]
[5,null,null,null,null,{"$f":"IF(COUNTIFS(Πίνακας35678[ΑΜΚΑ\n(2)],B6)<2,\"ΟΧΙ\",\"ΝΑΙ\")","v":"ΟΧΙ"}]
[6,null,null,null,null,{"$f":"IF(COUNTIFS(Πίνακας35678[ΑΜΚΑ\n(2)],B7)<2,\"ΟΧΙ\",\"ΝΑΙ\")","v":"ΟΧΙ"}]
[7,null,null,null,null,{"$f":"IF(COUNTIFS(Πίνακας35678[ΑΜΚΑ\n(2)],B8)<2,\"ΟΧΙ\",\"ΝΑΙ\")","v":"ΟΧΙ"}]
[8,null,null,null,null,{"$f":"IF(COUNTIFS(Πίνακας35678[ΑΜΚΑ\n(2)],B9)<2,\"ΟΧΙ\",\"ΝΑΙ\")","v":"ΟΧΙ"}]
[9,null,null,null,null,{"$f":"IF(COUNTIFS(Πίνακας35678[ΑΜΚΑ\n(2)],B10)<2,\"ΟΧΙ\",\"ΝΑΙ\")","v":"ΟΧΙ"}]
[10,null,null,null,null,{"$f":"IF(COUNTIFS(Πίνακας35678[ΑΜΚΑ\n(2)],B11)<2,\"ΟΧΙ\",\"ΝΑΙ\")","v":"ΟΧΙ"}]
[11,null,null,null,null,{"$f":"IF(COUNTIFS(Πίνακας35678[ΑΜΚΑ\n(2)],B12)<2,\"ΟΧΙ\",\"ΝΑΙ\")","v":"ΟΧΙ"}]
[12,null,null,null,null,{"$f":"IF(COUNTIFS(Πίνακας35678[ΑΜΚΑ\n(2)],B13)<2,\"ΟΧΙ\",\"ΝΑΙ\")","v":"ΟΧΙ"}]
[13,null,null,null,null,{"$f":"IF(COUNTIFS(Πίνακας35678[ΑΜΚΑ\n(2)],B14)<2,\"ΟΧΙ\",\"ΝΑΙ\")","v":"ΟΧΙ"}]
[14,null,null,null,null,{"$f":"IF(COUNTIFS(Πίνακας35678[ΑΜΚΑ\n(2)],B15)<2,\"ΟΧΙ\",\"ΝΑΙ\")","v":"ΟΧΙ"}]
[15,null,null,null,null,{"$f":"IF(COUNTIFS(Πίνακας35678[ΑΜΚΑ\n(2)],B16)<2,\"ΟΧΙ\",\"ΝΑΙ\")","v":"ΟΧΙ"}]
[16,null,null,null,null,{"$f":"IF(COUNTIFS(Πίνακας35678[ΑΜΚΑ\n(2)],B17)<2,\"ΟΧΙ\",\"ΝΑΙ\")","v":"ΟΧΙ"}]
[17,null,null,null,null,{"$f":"IF(COUNTIFS(Πίνακας35678[ΑΜΚΑ\n(2)],B18)<2,\"ΟΧΙ\",\"ΝΑΙ\")","v":"ΟΧΙ"}]
[18,null,null,null,null,{"$f":"IF(COUNTIFS(Πίνακας35678[ΑΜΚΑ\n(2)],B19)<2,\"ΟΧΙ\",\"ΝΑΙ\")","v":"ΟΧΙ"}]

{"sheet":"ws_Index","index":7,"n_rows":7,"n_cols":5,"rows_kept":7,"cut":false,"hidden":true,"merged":[[1,1,1,4]]}
[]
[null,"Υπολογισμός δείκτη για τη δράση\n@@@@@"]
[null,"Έτος","Άνδρες","Γυναίκες","Σύνολο"]
[null,2019]
[null,2020]
[null,2021]
[null,"Σύνολο",{"$f":"SUM(C4:C6)","v":0},{"$f":"SUM(D4:D6)","v":0},{"$f":"SUM(E4:E6)","v":0}]